Cogmind - Beta 17 @@@ ROGUE MODE // 2026.06.25 @ 23:10:27 Player: Walta Result: Destroyed by CU-D95(R) with Subdweller Beam Cannon Performance ------------- Evolutions (0) 0 Regions Visited (3) 600 Robots Destroyed (27) 135 Value Destroyed (599) 599 Prototype IDs (0) 0 Alien Tech Used (0) 0 Bonus (-94) -94 TOTAL SCORE: 1240 Bonus ------- Follower Combat Kills 37 Friendly Fire -131 Cogmind --------- Core Integrity 0/250 Matter 300/300 Energy 154/160 System Corruption 0% Temperature Cool (9) Movement Walking (260) Ox2 Location -10/Subcaves Parts ------- > --- POWER (1) -------- Light Nuclear Core > --- PROPULSION (2) --- Carbon-fiber Leg > --- UTILITY (2) ------ Improved Heat Sink Large Storage Unit > --- WEAPON (2) ------- Subdweller Laser Light Assault Rifle > --- INVENTORY (15) --- Ion Engine Light Ion Engine Light Ion Engine Improved Terrain Scanner Scrap Shield Fragment (49) Scrap Shield Fragment (48) Scrap Shield Fragment (45) Peak State ------------ > --- POWER ------------ Light Nuclear Core > --- PROPULSION ------- Carbon-fiber Leg > --- UTILITY ---------- Improved Heat Sink Large Storage Unit > --- WEAPON ----------- Subdweller Laser Light Assault Rifle > --- INVENTORY -------- Ion Engine Light Ion Engine Light Ion Engine Improved Terrain Scanner Scrap Shield Fragment Scrap Shield Fragment Scrap Shield Fragment [Rating: 14] Favorites ----------- Power Light Nuclear Core Engine Light Ion Engine Power Core Light Nuclear Core Propulsion Light Treads Treads Light Treads Leg Carbon-fiber Leg Utility Large Storage Unit Device ECM Suite Storage Large Storage Unit Weapon Light Assault Rifle Energy Gun Subdweller Laser Ballistic Gun Light Assault Rifle Launcher Grenade Launcher Build | -11 -10 -10 -10 ------- Run | Yrd Mat Min Sub Slots Evolved . | . . . . Power . | . . . . Propulsion . | . . . . Utility . | . . . . Weapon . | . . . . Parts Attached 14 | 6 4 1 3 Power 3 | 1 1 1 . Engine 2 | 1 . 1 . Core 1 | . 1 . . Reactor . | . . . . Propulsion 3 | 2 . . 1 Treads 2 | 2 . . . Leg 1 | . . . 1 Wheel . | . . . . Hover . | . . . . Flight . | . . . . Utility 4 | 1 2 . 1 Device 2 | . 1 . 1 Storage 2 | 1 1 . . Processor . | . . . . Hackware . | . . . . Protection . | . . . . Artifact . | . . . . Weapon 4 | 2 1 . 1 Energy Gun 1 | . . . 1 Energy Cannon . | . . . . Ballistic Gun 2 | 2 . . . Ballistic Cannon . | . . . . Launcher 1 | . 1 . . Special Weapon . | . . . . Impact Weapon . | . . . . Slashing Weapon . | . . . . Piercing Weapon . | . . . . Special Melee Weapon . | . . . . Unidentified Prototypes . | . . . . Parts Lost 4 | . 1 . 3 Power . | . . . . Propulsion 2 | . . . 2 Utility 1 | . . . 1 Weapon 1 | . 1 . . Highest Loss Streak 2 | . 1 . 2 To Critical Strikes . | . . . . Average Backups 4 | 1 3 4 5 Power 2 | . 2 2 3 Propulsion . | . . . . Utility . | . . . 1 Weapon . | . 1 . . Tool/Special . | . . . . Unused Backups 4 | 1 . . 3 Power 2 | . . . 2 Propulsion . | . . . . Utility 1 | . . . 1 Weapon 1 | 1 . . . Tool/Special . | . . . . Average Slot Usage (%) 90 | . 81 100 92 Engine 5 | . 12 . . Core 8 | . 1 14 14 Treads 26 | . 28 28 21 Device 10 | . 6 14 13 Storage 14 | . 14 14 14 Energy Gun 2 | . . . 9 Ballistic Gun 17 | . 8 28 18 Launcher 3 | . 9 . . Peak Build Rating 14 | 6 9 10 14 Average Rating 7 | 5 5 9 10 On Entrance 6 | . 6 9 10 Avg Prop Armor Cover (%) . | . . . . Naked Turns . | . . . . Heaviest Build 32 | 11 30 30 32 Greatest Support 40 | 40 40 40 40 Greatest Overweight (x) 9 | . . . 9 Average Overweight (x) . | . . . . Largest Inventory Capacity 15 | 8 15 15 15 Average Capacity 12 | 7 11 15 15 Most Carried 9 | 5 6 6 9 Average Carried 4 | 1 3 4 7 Final Capacity 15 | 8 15 15 15 Final Carried 7 | 2 2 6 7 Class Distribution -------------------- 100% | Mutant Dominant Class ---------------- Mutant | -10/Materials Mutant | -10/Mines Mutant | -10/Subcaves Resources | -11 -10 -10 -10 ----------- Run | Yrd Mat Min Sub Matter Collected 641 | 253 223 129 36 Remotely . | . . . . Salvage Created 774 | 141 436 55 142 Parts 54 | 8 30 5 11 Haulers Intercepted . | . . . . Recyclers Shooed 1 | 1 . . . Parts Field Recycled . | . . . . Retrieved Matter . | . . . . Parts Self-Destructed 3 | . . . 3 Prevented . | . . . . Parts Restored . | . . . . Kills | -11 -10 -10 -10 ------- Run | Yrd Mat Min Sub Combat Hostiles Destroyed 16 | . 13 1 2 Guns 7 | . 4 1 2 AOE 9 | . 9 . . Classes Destroyed 8 | 3 4 . 1 Worker 2 | 2 . . . Tunneler 3 | 1 . 2 . Recycler 2 | 1 1 . . Operator 1 | . 1 . . Watcher 2 | . 2 . . Swarmer 4 | . 3 1 . Grunt 10 | . 10 . . Subdweller 2 | . . . 2 Thug 1 | . . . 1 Best Kill Streak 4 | 3 4 2 1 Combat Bots Only 4 | . 4 1 1 Max Kills in Single Turn 2 | 2 2 1 1 Gunslinging . | . . . . Exploded 2 | . 2 . . Melee . | . . . . Uniques/NPCs Destroyed . | . . . . Combat | -11 -10 -10 -10 -------- Run | Yrd Mat Min Sub Hostile Shots Fired 75 | . 50 5 20 Missed 25 | . 17 2 6 Hits 50 | . 33 3 14 Projectile 50 | . 33 3 14 Damage Taken 805 | . 447 23 335 Core 269 | . 89 7 173 Absorbed by Shields . | . . . . Core Remaining (%) 100 | 100 . . . Volleys Fired 54 | 8 26 9 11 Largest 2 | 2 2 2 2 Hottest 80 | 40 40 40 80 Shots Fired 91 | 16 35 18 22 Gun 74 | 16 18 18 22 Cannon . | . . . . Launcher 17 | . 17 . . Special . | . . . . Kinetic 64 | 16 18 18 12 Thermal 10 | . . . 10 Explosive 17 | . 17 . . Electromagnetic . | . . . . Robot Hit Streak 10 | 10 6 4 10 Robot Miss Streak 2 | 1 2 2 1 Penetration Max . | . . . . Secondary Targets 2 | . 2 . . Max Gunslinging Chain 1 | . 1 . . Shots Hit Robots 58 | 12 18 10 18 Core Hits 40 | 6 26 3 5 Critical Kills . | . . . . Critical Parts Destroyed . | . . . . Critical Strikes . | . . . . Melee Attacks . | . . . . Impact . | . . . . Slashing . | . . . . Piercing . | . . . . Sneak Attacks . | . . . . Combat Hostiles . | . . . . Follow-up Attacks . | . . . . Damage Inflicted 1461 | 130 952 109 270 Guns 635 | 130 126 109 270 Cannons . | . . . . Explosions 823 | . 823 . . Melee . | . . . . Ramming 3 | . 3 . . Kinetic 451 | 130 126 109 86 Thermal 294 | . 110 . 184 Explosive 713 | . 713 . . Electromagnetic . | . . . . Impact . | . . . . Slashing . | . . . . Piercing . | . . . . Highest Corruption . | . . . . Average Corruption . | . . . . Corruption Purged . | . . . . Corruption Blocked . | . . . . Overload Shots . | . . . . Overflow Damage 19 | . 19 . . Projectiles . | . . . . Explosions 19 | . 19 . . Melee . | . . . . Knockbacks . | . . . . Impact . | . . . . Kinetic . | . . . . Secondary . | . . . . Self-Inflicted Damage 84 | . 84 . . Shots 4 | . 4 . . Rammed 2 | . 1 1 . Targets Rammed 3 | . 2 1 . Kicked . | . . . . Crushed 1 | . 1 . . Highest Temperature 19 | . 13 8 19 Average Temperature 5 | . 7 3 7 Received Heat Transfer 300 | . 195 . 105 Siege Activations . | . . . . Martial Activations . | . . . . Shielding Activations . | . . . . Robots Disrupted . | . . . . Combat Hostiles . | . . . . Robots Corrupted . | . . . . Combat Hostiles . | . . . . Parts Fried . | . . . . Impact Corruptions . | . . . . Robots Melted . | . . . . Combat Hostiles . | . . . . Parts Melted . | . . . . Heat Transferred 325 | . 100 . 225 Parts Sabotaged . | . . . . Parts Stolen . | . . . . Parts Stripped . | . . . . Power Chain Reactions . | . . . . Alert | -11 -10 -10 -10 ------- Run | Yrd Mat Min Sub Maximum Alert Level 1 | . 1 . . Low Security (%) 78 | 100 56 100 . Level 1 21 | . 43 . . Level 2 . | . . . . Level 3 . | . . . . Level 4 . | . . . . Level 5 . | . . . . High Security . | . . . . Max Security . | . . . . Peak Influence 286 | 15 286 103 . Initial 103 | . 3 103 . Average 87 | 1 147 38 . Influence Increases 545 | 20 473 52 . Destroy 0b10 Robot/C 300 | . 260 40 . Destroy 0b10 Robot/NC 50 | 20 20 10 . Destroy Leader 64 | . 64 . . Allied During Kill 2 | . . 2 . Successful Hack 4 | . 4 . . Disable Machine 45 | . 45 . . Destroy Structure 80 | . 80 . . Influence Decreases 545 | 15 211 315 4 Entered New Map 169 | . 2 164 3 Time Decay 366 | 15 199 151 1 Lost Part 10 | . 10 . . Squads Dispatched 6 | . 6 . . Investigation 4 | . 4 . . Extermination . | . . . . Reinforcement 2 | . 2 . . Assault . | . . . . Garrison . | . . . . Intercept . | . . . . Searches Triggered . | . . . . Construction Impeded . | . . . . Haulers Reinforced . | . . . . Active Scanning Responses . | . . . . Cargo Convoy Interrupts . | . . . . Stealth | -11 -10 -10 -10 --------- Run | Yrd Mat Min Sub Distress Signals 6 | . 5 1 . Communications Jammed . | . . . . Distress Signals . | . . . . Times Spotted 30 | . 23 3 4 Peak Tracking Total 5 | . 5 3 2 Tactical Retreats 3 | . 3 . . ECM-based Alert Blocks 5 | . 5 . . Traps | -11 -10 -10 -10 ------- Run | Yrd Mat Min Sub Traps Triggered 1 | . 1 . . Indirectly . | . . . . Trap Hack Attempts . | . . . . Triggered . | . . . . Disarmed . | . . . . Reprogrammed . | . . . . Reused . | . . . . Traps Extracted . | . . . . Installed . | . . . . Triggered . | . . . . Machines | -11 -10 -10 -10 ---------- Run | Yrd Mat Min Sub Machines Disabled 4 | . 4 . . Max in Single Turn 2 | . 2 . . Machines Repaired . | . . . . Machines Dismantled . | . . . . Machines Sabotaged . | . . . . Overloaded Fab Kills . | . . . . Hacking | -11 -10 -10 -10 --------- Run | Yrd Mat Min Sub Machines Accessed 3 | . 3 . . Terminals 3 | . 3 . . Fabricators . | . . . . Repair Stations . | . . . . Recycling Units . | . . . . Scanalyzers . | . . . . Garrison Access . | . . . . Total Hacks 10 | . 10 . . Successful 2 | . 2 . . Failed 8 | . 8 . . Catastrophic 1 | . 1 . . Database Lockouts . | . . . . Manual 5 | . 5 . . Terminals 10 | . 10 . . Fabricators . | . . . . Repair Stations . | . . . . Recycling Units . | . . . . Scanalyzers . | . . . . Garrison Access . | . . . . Terminal Hacks 2 | . 2 . . Emergency Access Points 1 | . 1 . . Alert Level 1 | . 1 . . Fabricator Hacks . | . . . . Repair Station Hacks . | . . . . Recycling Unit Hacks . | . . . . Scanalyzer . | . . . . Garrison Access Hacks . | . . . . Unauthorized Hacks . | . . . . Terminals . | . . . . Fabricators . | . . . . Repair Stations . | . . . . Recycling Units . | . . . . Scanalyzers . | . . . . Garrison Access . | . . . . Data Cores Recovered . | . . . . Used . | . . . . Hacking Detections 2 | . 2 . . Full Trace Events 2 | . 2 . . Feedback Events . | . . . . Feedback Blocked . | . . . . Robot Schematics Acquired . | . . . . Robots Built . | . . . . Authchips . | . . . . Time . | . . . . Total Robot Build Rating . | . . . . Part Schematics Acquired . | . . . . Parts Built . | . . . . Authchips . | . . . . Time . | . . . . Total Part Build Rating . | . . . . Part Studies Acquired . | . . . . Parts Repaired . | . . . . Time . | . . . . Parts Recycled . | . . . . Recycled Matter . | . . . . Retrieved Matter . | . . . . Retrieved Components . | . . . . Parts Scanalyzed . | . . . . Part Schematics Acquired . | . . . . Parts Damaged . | . . . . Bothacking | -11 -10 -10 -10 ------------ Run | Yrd Mat Min Sub Used RIF Installer . | . . . . Robots Hacked . | . . . . Non-combat . | . . . . Combat . | . . . . Robot Hacks Applied . | . . . . Relay Couplers Released . | . . . . Fabnet Peak Effective % . | . . . . Robots Rewired . | . . . . Allies Hacked . | . . . . Hacks Repelled . | . . . . Allies | -11 -10 -10 -10 -------- Run | Yrd Mat Min Sub Total Allies 2 | . . 2 . Largest Group 2 | . . 2 2 Highest-Rated Group 41 | . . 41 37 Highest-Rated Ally 31 | . . 31 31 Total Orders . | . . . . Ally Attacks 6 | . . 2 4 Total Damage 123 | . . 40 83 Kills 2 | . . 1 1 Allies Corrupted . | . . . . Allies Melted . | . . . . Intel | -11 -10 -10 -10 ------- Run | Yrd Mat Min Sub Active Infowar (turns) 1012 | . 253 413 346 ECM 1012 | . 253 413 346 Robot Analysis Total . | . . . . Derelict Logs Recovered 1 | . . . 1 Drone Launches . | . . . . Drone Recoveries . | . . . . Exploration | -11 -10 -10 -10 ------------- Run | Yrd Mat Min Sub Turns Passed 1519 | 173 572 413 361 Spaces Moved 753 | 87 288 214 164 Core 4 | 3 . . 1 Treads 749 | 84 288 214 163 Legs . | . . . . Wheels . | . . . . Hover . | . . . . Flight . | . . . . Fastest Speed 50 | 50 160 160 160 Average Speed 165 | 156 160 160 186 Slowest Speed 500 | 160 160 160 500 Overloaded Moves . | . . . . Propulsion Burnouts . | . . . . Robots Hopped . | . . . . Potential Cave-ins . | . . . . Cave-ins Triggered . | . . . . Exploration Rate (%) 32 | 4 59 54 11 Regions Visited 3 Branch Regions 2 Pre-discovered Areas . | . . . . Known Exits Taken . | . . . . Unknown Exits Taken 3 | 1 1 1 . Scrap Searched 1 | . . . 1 Spaces Dug . | . . . . Terrain Destroyed 81 | . 81 . . Melee . | . . . . Projectile . | . . . . AOE 81 | . 81 . . Terrain Rammed . | . . . . Walls Destroyed . | . . . . Machines Disabled . | . . . . Actions | -11 -10 -10 -10 --------- Run | Yrd Mat Min Sub Total 946 | 110 366 267 203 Wait 89 | . 37 38 14 Move 750 | 86 287 213 164 Hop . | . . . . Pick Up 24 | 9 4 4 7 Fast Attach . | . . . . Attach 14 | 6 5 . 3 Detach 2 | . 2 . . Swap 3 | . 1 2 . Drop 7 | 1 2 . 4 Fire 54 | 8 26 9 11 Melee . | . . . . Ram . | . . . . Kick . | . . . . Crush 3 | . 2 1 . Escape Stasis . | . . . . Rewire . | . . . . Trap . | . . . . Miscellaneous . | . . . . Route ------- -11/Scrapyard -10/Materials -10/Mines -10/Subcaves History --------- Turn | Location | Event 41 | -11/Scrapyard | Discovered new exit (range 15) 174 | -11/Scrapyard | Entered Materials 175 | -10/Materials | Met a group of wandering Federalists 302 | -10/Materials | Build established: Mutant 356 | -10/Materials | Discovered new exit (range 16) 746 | -10/Materials | Entered Mines 760 | -10/Mines | Met a Derelict bent on vengeance 1088 | -10/Mines | Discovered new exit (range 10) 1159 | -10/Mines | Entered Subcaves 1159 | -10/Subcaves | Accompanied by 2 allies 1159 | -10/Subcaves | Learned 2 Materials zone layouts 1160 | -10/Subcaves | Approached by a straggling Scientist 1164 | -10/Subcaves | Led the pair of lost Derelicts to an unsafe place 1356 | -10/Subcaves | Disturbed a concealed Subdweller 1367 | -10/Subcaves | Core integrity fell below 50% 1506 | -10/Subcaves | Core integrity fell below 20% 1520 | -10/Subcaves | Destroyed by CU-D95(R) with Subdweller Beam Cannon Last Messages --------------- W9-IFE(R) destroyed. Acquired Scrap Shield Fragment. Acquired 9 matter. Subatomizers dissect the Sub. Power Source. Searching scrap... Found Sub. Machine Gun. Found Sub. Laser. Found 60 Matter. Subatomizers dissect the Sub. Power Source. AC-LQL(c): "I think it's somewhere northwest of here" Dropped Scrap Shield Fragment. Acquired Scrap Shield Fragment. DB-OLU(g) destroyed. [Achievement: Backstab] Lgt. Treads destroyed. ECM Suite destroyed. KD-M8C(R) destroyed. Acquired 21 matter. AC-LQL(c): "I think it's somewhere northwest of here" Acquired 1 matter. Map ----- +----------------------------------------------------+ | ?????????????????????????????????????????????????? | | ?????????????????????????????????????????????????? | | ?????????????????????????????????????????????????? | | ?????????????????????????????????????????????????? | | ?????????????????????????????????????????????????? | | ?????????????????????????????????????????????????? | | ?????????????????????????????????????????????????? | | ?????????????????????????????????????????????????? | | ?????????????????????????????????????????????????? | | ?????????????????????????????????????????????????? | | ?????????????????????????????????????????????????? | | ?????????????????????????????????????????????????? | | ??????????????????????????#??????????????????????? | | ####?????????????????????? ??????????????????????? | | #%=#?????????????????????? ??????????????????????? | | [[*#?????????????????????? ##????????????????????? | | %"##?????????????????????? #????????????????????? | | &###?????????????????????# #????????????????????? | | # #????????????????????? ????????????????????? | | " #?????????????????????# ##???????????????????? | | ####??????????????????# #???????????????????? | | ##??????????????### #???????????????????? | | # #?????????????## ## #???????????????????? | | # ##????????????# ##=!##???????????????????? | | ###??????????# #R[ #???????????????????? | | % ####???????# @!! #???????????????????? | | #???????# #???????????????????? | | ######???# #### #??????????????? | | ## ###?# c #??????????????? | | ## # #?# #??????????????? | | ## ## #??# #??????????????? | | ###?## #?????????????? | | #?### ##?????????????? | | ## ### ### ######??????????????? | | ### ### #??# #???????????????????? | | ??### #?# % ##?? ??????????????????? | | ????####?# ### #?? #????????????????? | | ????????#" # #?# #??## ???????????????? | | ????????###### ## #????#### ??????????????? | | ????????????## ## ????????#??????????????? | | ????????????# ### ?????????????????????? | | ????????????## #### ????????????????????? | | ????????????## #### #???????????????????? | | ????????????# #?# #####???????????????????? | | ????????????# # #???????????????????????? | | ????????????# #### #???????????????????????? | | ????????????# ? #???????????????????????? | | ????????????# ##???????????????????????? | | ????????????# #????????????????????????? | | ????????????#### #????????????????????????? | +----------------------------------------------------+ Best States ------------- Heat Dissipation 39 Energy Generation 14 Energy Capacity 160 Matter Stores 300 Matter Capacity 300 Sight Range 16 Terrain Scan Density 10 ECM Strength 1 Evasion (%) 40 Recoil Reduction 2 Item Schematics ----------------- None Robot Schematics ------------------ None Fabricated ------------ Nothing Repaired ---------- Nothing Studied --------- None Alien Tech Used ----------------- None Achievements -------------- Backstab Challenges ------------ None Game ------ Seed SixMetamassShield Manual? 0 Play Time 00:15:38 Cumulative 4.9 hours Start 2026.06.25 @ 22:57:15 End 2026.06.25 @ 23:10:27 Sessions 1 Manual Loads 0 Difficulty Rogue Special Mode None Game No. 10 Rogue 10 Adventurer 0 Explorer 0 Win Type - Total 0 Types 0/0/0/0/0/0/0/0/0/0 Lore% 5 Gallery% 9 Achievement% 9 Wizard Run 0 Options --------- Layout 0 ASCII 0 Keyboard 0 Movement Mouse Keybinds 0 Fullscreen 1 Font 24/Smallcaps Map View 76x50 Zoom Use 0% Tactical HUD 0 Map Filters NONE Filters NONE Steam 1 RUN: eb09ef6f-bcb6-425b-9f35-3bd081767d64